{"text_format":"3","workbook":"xlsx","n_sheets":1,"sheets":["Протокол ШЭ ВОШ по предмету"],"not_rendered":{"external_links":1,"defined_names":1},"read":"whole","date_system":"1900"}

{"sheet":"Протокол ШЭ ВОШ по предмету","index":0,"n_rows":14,"n_cols":15,"rows_kept":14}
["№","Фамилия","Имя","Отчество","Дата рождения","Пол","Участник с ОВЗ (да/нет)","Класс обучения","Класс участия","Балл","Максимальный балл","Статус","Призёр муниципального этапа прошлого года","ФИО учителя","Место работы учителя"]
[1,{"$f":"'[1]Протокол ШЭ ВОШ по предмету'!B2","v":"Семенова"},{"$f":"'[1]Протокол ШЭ ВОШ по предмету'!C2","v":"Анастасия"},{"$f":"'[1]Протокол ШЭ ВОШ по предмету'!D2","v":"Павловна"},{"$f":"'[1]Протокол ШЭ ВОШ по предмету'!E2","v":"2011-07-05"},{"$f":"'[1]Протокол ШЭ ВОШ по предмету'!F3","v":"ж"},{"$f":"'[1]Протокол ШЭ ВОШ по предмету'!G2","v":"нет"},{"$f":"'[1]Протокол ШЭ ВОШ по предмету'!H2","v":5},{"$f":"'[1]Протокол ШЭ ВОШ по предмету'!I2","v":5},{"$f":"'[1]Протокол ШЭ ВОШ по предмету'!J2","v":15},{"$f":"'[1]Протокол ШЭ ВОШ по предмету'!K2","v":25},"призер",{"$f":"'[1]Протокол ШЭ ВОШ по предмету'!M2","v":"нет"},{"$f":"'[1]Протокол ШЭ ВОШ по предмету'!N2","v":"Сабирзянова Ольга Александровна"},{"$f":"'[1]Протокол ШЭ ВОШ по предмету'!O2","v":"МАОУ СОШ № 10 с  УИОП"}]
[2,{"$f":"'[1]Протокол ШЭ ВОШ по предмету'!B3","v":"Газизова"},{"$f":"'[1]Протокол ШЭ ВОШ по предмету'!C3","v":"Динара"},{"$f":"'[1]Протокол ШЭ ВОШ по предмету'!D3","v":"Руслановна"},{"$f":"'[1]Протокол ШЭ ВОШ по предмету'!E3","v":"2012-01-28"},{"$f":"'[1]Протокол ШЭ ВОШ по предмету'!F4","v":"ж"},{"$f":"'[1]Протокол ШЭ ВОШ по предмету'!G3","v":"нет"},{"$f":"'[1]Протокол ШЭ ВОШ по предмету'!H3","v":5},{"$f":"'[1]Протокол ШЭ ВОШ по предмету'!I3","v":5},{"$f":"'[1]Протокол ШЭ ВОШ по предмету'!J3","v":5.8},{"$f":"'[1]Протокол ШЭ ВОШ по предмету'!K3","v":25},{"$f":"'[1]Протокол ШЭ ВОШ по предмету'!L3","v":"участник"},{"$f":"'[1]Протокол ШЭ ВОШ по предмету'!M3","v":"нет"},{"$f":"'[1]Протокол ШЭ ВОШ по предмету'!N3","v":"Сабирзянова Ольга Александровна"},{"$f":"'[1]Протокол ШЭ ВОШ по предмету'!O3","v":"МАОУ СОШ № 10 с  УИОП"}]
[3,{"$f":"'[1]Протокол ШЭ ВОШ по предмету'!B4","v":"Бакирова"},{"$f":"'[1]Протокол ШЭ ВОШ по предмету'!C4","v":"Аделия"},{"$f":"'[1]Протокол ШЭ ВОШ по предмету'!D4","v":"Рашитовна"},{"$f":"'[1]Протокол ШЭ ВОШ по предмету'!E4","v":"2011-12-06"},{"$f":"'[1]Протокол ШЭ ВОШ по предмету'!F5","v":"ж"},{"$f":"'[1]Протокол ШЭ ВОШ по предмету'!G4","v":"нет"},{"$f":"'[1]Протокол ШЭ ВОШ по предмету'!H4","v":5},{"$f":"'[1]Протокол ШЭ ВОШ по предмету'!I4","v":5},{"$f":"'[1]Протокол ШЭ ВОШ по предмету'!J4","v":14},{"$f":"'[1]Протокол ШЭ ВОШ по предмету'!K4","v":25},{"$f":"'[1]Протокол ШЭ ВОШ по предмету'!L4","v":"призер"},{"$f":"'[1]Протокол ШЭ ВОШ по предмету'!M4","v":"нет"},{"$f":"'[1]Протокол ШЭ ВОШ по предмету'!N4","v":"Сабирзянова Ольга Александровна"},{"$f":"'[1]Протокол ШЭ ВОШ по предмету'!O4","v":"МАОУ СОШ № 10 с  УИОП"}]
[4,{"$f":"'[1]Протокол ШЭ ВОШ по предмету'!B5","v":"Сафиуллина"},{"$f":"'[1]Протокол ШЭ ВОШ по предмету'!C5","v":"Эвелина"},{"$f":"'[1]Протокол ШЭ ВОШ по предмету'!D5","v":"Айратовна"},{"$f":"'[1]Протокол ШЭ ВОШ по предмету'!E5","v":"2011-03-01"},{"$f":"'[1]Протокол ШЭ ВОШ по предмету'!F6","v":"ж"},{"$f":"'[1]Протокол ШЭ ВОШ по предмету'!G5","v":"нет"},{"$f":"'[1]Протокол ШЭ ВОШ по предмету'!H5","v":5},{"$f":"'[1]Протокол ШЭ ВОШ по предмету'!I5","v":5},{"$f":"'[1]Протокол ШЭ ВОШ по предмету'!J5","v":14.4},{"$f":"'[1]Протокол ШЭ ВОШ по предмету'!K5","v":25},{"$f":"'[1]Протокол ШЭ ВОШ по предмету'!L5","v":"призер"},{"$f":"'[1]Протокол ШЭ ВОШ по предмету'!M5","v":"нет"},{"$f":"'[1]Протокол ШЭ ВОШ по предмету'!N5","v":"Сабирзянова Ольга Александровна"},{"$f":"'[1]Протокол ШЭ ВОШ по предмету'!O5","v":"МАОУ СОШ № 10 с  УИОП"}]
[5,{"$f":"'[1]Протокол ШЭ ВОШ по предмету'!B6","v":"Садыкова"},{"$f":"'[1]Протокол ШЭ ВОШ по предмету'!C6","v":"Ясмина"},{"$f":"'[1]Протокол ШЭ ВОШ по предмету'!D6","v":"Рустамовна"},{"$f":"'[1]Протокол ШЭ ВОШ по предмету'!E6","v":"2010-01-17"},"ж",{"$f":"'[1]Протокол ШЭ ВОШ по предмету'!G6","v":"нет"},{"$f":"'[1]Протокол ШЭ ВОШ по предмету'!H6","v":6},{"$f":"'[1]Протокол ШЭ ВОШ по предмету'!I6","v":6},{"$f":"'[1]Протокол ШЭ ВОШ по предмету'!J6","v":10},{"$f":"'[1]Протокол ШЭ ВОШ по предмету'!K6","v":25},{"$f":"'[1]Протокол ШЭ ВОШ по предмету'!L6","v":"участник"},{"$f":"'[1]Протокол ШЭ ВОШ по предмету'!M6","v":"нет"},{"$f":"'[1]Протокол ШЭ ВОШ по предмету'!N6","v":"Сабирзянова Ольга Александровна"},{"$f":"'[1]Протокол ШЭ ВОШ по предмету'!O6","v":"МАОУ СОШ № 10 с  УИОП"}]
[6,{"$f":"'[1]Протокол ШЭ ВОШ по предмету'!B7","v":"Бурлов"},{"$f":"'[1]Протокол ШЭ ВОШ по предмету'!C7","v":"Егор"},{"$f":"'[1]Протокол ШЭ ВОШ по предмету'!D7","v":"Максимович"},{"$f":"'[1]Протокол ШЭ ВОШ по предмету'!E7","v":"2010-11-07"},"м",{"$f":"'[1]Протокол ШЭ ВОШ по предмету'!G7","v":"нет"},{"$f":"'[1]Протокол ШЭ ВОШ по предмету'!H7","v":6},{"$f":"'[1]Протокол ШЭ ВОШ по предмету'!I7","v":6},7.8,{"$f":"'[1]Протокол ШЭ ВОШ по предмету'!K7","v":25},{"$f":"'[1]Протокол ШЭ ВОШ по предмету'!L7","v":"участник"},{"$f":"'[1]Протокол ШЭ ВОШ по предмету'!M7","v":"нет"},{"$f":"'[1]Протокол ШЭ ВОШ по предмету'!N7","v":"Сабирзянова Ольга Александровна"},{"$f":"'[1]Протокол ШЭ ВОШ по предмету'!O7","v":"МАОУ СОШ № 10 с  УИОП"}]
[7,{"$f":"'[1]Протокол ШЭ ВОШ по предмету'!B8","v":"Валиахметова"},{"$f":"'[1]Протокол ШЭ ВОШ по предмету'!C8","v":"Карина"},{"$f":"'[1]Протокол ШЭ ВОШ по предмету'!D8","v":"Эльвировна"},{"$f":"'[1]Протокол ШЭ ВОШ по предмету'!E8","v":"2008-03-21"},{"$f":"'[1]Протокол ШЭ ВОШ по предмету'!F9","v":"ж"},{"$f":"'[1]Протокол ШЭ ВОШ по предмету'!G8","v":"нет"},{"$f":"'[1]Протокол ШЭ ВОШ по предмету'!H8","v":8},{"$f":"'[1]Протокол ШЭ ВОШ по предмету'!I8","v":8},15.3,{"$f":"'[1]Протокол ШЭ ВОШ по предмету'!K8","v":33},{"$f":"'[1]Протокол ШЭ ВОШ по предмету'!L8","v":"участник"},{"$f":"'[1]Протокол ШЭ ВОШ по предмету'!M8","v":"нет"},{"$f":"'[1]Протокол ШЭ ВОШ по предмету'!N8","v":"Сабирзянова Ольга Александровна"},{"$f":"'[1]Протокол ШЭ ВОШ по предмету'!O8","v":"МАОУ СОШ № 10 с  УИОП"}]
[8,{"$f":"'[1]Протокол ШЭ ВОШ по предмету'!B9","v":"Гайнутдинова"},{"$f":"'[1]Протокол ШЭ ВОШ по предмету'!C9","v":"Азалия"},{"$f":"'[1]Протокол ШЭ ВОШ по предмету'!D9","v":"Рамильевна"},{"$f":"'[1]Протокол ШЭ ВОШ по предмету'!E9","v":"2008-07-24"},{"$f":"'[1]Протокол ШЭ ВОШ по предмету'!F10","v":"ж"},{"$f":"'[1]Протокол ШЭ ВОШ по предмету'!G9","v":"нет"},{"$f":"'[1]Протокол ШЭ ВОШ по предмету'!H9","v":8},{"$f":"'[1]Протокол ШЭ ВОШ по предмету'!I9","v":8},{"$f":"'[1]Протокол ШЭ ВОШ по предмету'!J9","v":15},{"$f":"'[1]Протокол ШЭ ВОШ по предмету'!K9","v":33},{"$f":"'[1]Протокол ШЭ ВОШ по предмету'!L9","v":"участник"},{"$f":"'[1]Протокол ШЭ ВОШ по предмету'!M9","v":"нет"},{"$f":"'[1]Протокол ШЭ ВОШ по предмету'!N9","v":"Сабирзянова Ольга Александровна"},{"$f":"'[1]Протокол ШЭ ВОШ по предмету'!O9","v":"МАОУ СОШ № 10 с  УИОП"}]
[9,{"$f":"'[1]Протокол ШЭ ВОШ по предмету'!B10","v":"Пещерова"},{"$f":"'[1]Протокол ШЭ ВОШ по предмету'!C10","v":"Лия"},{"$f":"'[1]Протокол ШЭ ВОШ по предмету'!D10","v":"Васильевна"},{"$f":"'[1]Протокол ШЭ ВОШ по предмету'!E10","v":"2007-07-03"},{"$f":"'[1]Протокол ШЭ ВОШ по предмету'!F11","v":"ж"},{"$f":"'[1]Протокол ШЭ ВОШ по предмету'!G10","v":"нет"},{"$f":"'[1]Протокол ШЭ ВОШ по предмету'!H10","v":9},{"$f":"'[1]Протокол ШЭ ВОШ по предмету'!I10","v":9},30.4,{"$f":"'[1]Протокол ШЭ ВОШ по предмету'!K10","v":57},"призер",{"$f":"'[1]Протокол ШЭ ВОШ по предмету'!M10","v":"нет"},{"$f":"'[1]Протокол ШЭ ВОШ по предмету'!N10","v":"Сабирзянова Ольга Александровна"},{"$f":"'[1]Протокол ШЭ ВОШ по предмету'!O10","v":"МАОУ СОШ № 10 с  УИОП"}]
[10,{"$f":"'[1]Протокол ШЭ ВОШ по предмету'!B11","v":"Гимафутдинова"},{"$f":"'[1]Протокол ШЭ ВОШ по предмету'!C11","v":"Аделя"},{"$f":"'[1]Протокол ШЭ ВОШ по предмету'!D11","v":"Ахатовна"},{"$f":"'[1]Протокол ШЭ ВОШ по предмету'!E11","v":"2007-08-26"},"ж",{"$f":"'[1]Протокол ШЭ ВОШ по предмету'!G11","v":"нет"},{"$f":"'[1]Протокол ШЭ ВОШ по предмету'!H11","v":9},{"$f":"'[1]Протокол ШЭ ВОШ по предмету'!I11","v":9},21.8,{"$f":"'[1]Протокол ШЭ ВОШ по предмету'!K11","v":57},{"$f":"'[1]Протокол ШЭ ВОШ по предмету'!L11","v":"участник"},{"$f":"'[1]Протокол ШЭ ВОШ по предмету'!M11","v":"нет"},{"$f":"'[1]Протокол ШЭ ВОШ по предмету'!N11","v":"Сабирзянова Ольга Александровна"},{"$f":"'[1]Протокол ШЭ ВОШ по предмету'!O11","v":"МАОУ СОШ № 10 с  УИОП"}]
[11,{"$f":"'[1]Протокол ШЭ ВОШ по предмету'!B12","v":"Гиниятуллин"},{"$f":"'[1]Протокол ШЭ ВОШ по предмету'!C12","v":"Булат"},{"$f":"'[1]Протокол ШЭ ВОШ по предмету'!D12","v":"Дамирович"},{"$f":"'[1]Протокол ШЭ ВОШ по предмету'!E12","v":"2005-09-05"},"м",{"$f":"'[1]Протокол ШЭ ВОШ по предмету'!G12","v":"нет"},{"$f":"'[1]Протокол ШЭ ВОШ по предмету'!H12","v":11},{"$f":"'[1]Протокол ШЭ ВОШ по предмету'!I12","v":11},{"$f":"'[1]Протокол ШЭ ВОШ по предмету'!J12","v":"52.3"},{"$f":"'[1]Протокол ШЭ ВОШ по предмету'!K12","v":71},{"$f":"'[1]Протокол ШЭ ВОШ по предмету'!L12","v":"призер"},{"$f":"'[1]Протокол ШЭ ВОШ по предмету'!M12","v":"нет"},{"$f":"'[1]Протокол ШЭ ВОШ по предмету'!N12","v":"Сабирзянова Ольга Александровна"},{"$f":"'[1]Протокол ШЭ ВОШ по предмету'!O12","v":"МАОУ СОШ № 10 с  УИОП"}]
[12,{"$f":"'[1]Протокол ШЭ ВОШ по предмету'!B13","v":"Сотникова"},{"$f":"'[1]Протокол ШЭ ВОШ по предмету'!C13","v":"Анастасия"},{"$f":"'[1]Протокол ШЭ ВОШ по предмету'!D13","v":"Павловна"},{"$f":"'[1]Протокол ШЭ ВОШ по предмету'!E13","v":"2005-03-19"},{"$f":"'[1]Протокол ШЭ ВОШ по предмету'!F14","v":"ж"},{"$f":"'[1]Протокол ШЭ ВОШ по предмету'!G13","v":"нет"},{"$f":"'[1]Протокол ШЭ ВОШ по предмету'!H13","v":11},{"$f":"'[1]Протокол ШЭ ВОШ по предмету'!I13","v":11},{"$f":"'[1]Протокол ШЭ ВОШ по предмету'!J13","v":"52.8"},{"$f":"'[1]Протокол ШЭ ВОШ по предмету'!K13","v":71},{"$f":"'[1]Протокол ШЭ ВОШ по предмету'!L13","v":"призер"},{"$f":"'[1]Протокол ШЭ ВОШ по предмету'!M13","v":"нет"},{"$f":"'[1]Протокол ШЭ ВОШ по предмету'!N13","v":"Сабирзянова Ольга Александровна"},{"$f":"'[1]Протокол ШЭ ВОШ по предмету'!O13","v":"МАОУ СОШ № 10 с  УИОП"}]
[13,{"$f":"'[1]Протокол ШЭ ВОШ по предмету'!B14","v":"Хайрутдинова"},{"$f":"'[1]Протокол ШЭ ВОШ по предмету'!C14","v":"Аделина"},{"$f":"'[1]Протокол ШЭ ВОШ по предмету'!D14","v":"Ринатовна"},{"$f":"'[1]Протокол ШЭ ВОШ по предмету'!E14","v":"2005-08-29"},"ж",{"$f":"'[1]Протокол ШЭ ВОШ по предмету'!G14","v":"нет"},{"$f":"'[1]Протокол ШЭ ВОШ по предмету'!H14","v":11},{"$f":"'[1]Протокол ШЭ ВОШ по предмету'!I14","v":11},{"$f":"'[1]Протокол ШЭ ВОШ по предмету'!J14","v":"55.4"},{"$f":"'[1]Протокол ШЭ ВОШ по предмету'!K14","v":71},{"$f":"'[1]Протокол ШЭ ВОШ по предмету'!L14","v":"победитель"},{"$f":"'[1]Протокол ШЭ ВОШ по предмету'!M14","v":"нет"},{"$f":"'[1]Протокол ШЭ ВОШ по предмету'!N14","v":"Сабирзянова Ольга Александровна"},{"$f":"'[1]Протокол ШЭ ВОШ по предмету'!O14","v":"МАОУ СОШ № 10 с  УИОП"}]